bitfinex/quotes_SOLUSD_20250307
["timestamp","ask_amount","ask_price","bid_price","bid_amount"]
[1741318135287,0.03,141.85,141.84,564.31670393]
[1741318136170,0.03,141.85,141.84,538.94216157]
[1741318136963,0.03,141.85,141.84,401.14216157]
[1741318137167,0.03,141.85,141.84,419.32444236]
[1741318137487,0.03,141.85,141.84,426.37454236]
[1741318138294,0.03,141.85,141.84,426.51670393]
[1741318138497,0.03,141.85,141.84,445.16635279]
[1741318138694,0.03,141.85,141.84,451.46155279]
[1741318139282,0.03,141.85,141.84,432.81190393]
[1741318139486,0.03,141.85,141.84,425.76180393]
[1741318140503,0.03,141.85,141.84,432.81190393]
[1741318140672,0.03,141.85,141.84,89.0]
[1741318140988,0.03,141.85,141.84,82.1]
[1741318141179,0.03,141.85,141.84,82.24216157]
[1741318142205,0.03,141.85,141.83,6.88]
[1741318142489,18.21228079,141.85,141.82,250.08]
[1741318142679,18.18228079,141.84,141.82,82.1]
[1741318142878,18.18228079,141.83,141.8,82.1]
[1741318143477,18.18228079,141.84,141.8,82.1]
[1741318143677,18.18228079,141.84,141.8,394.1]
[1741318143892,18.18228079,141.84,141.81,0.14216157]
[1741318144068,0.03,141.85,141.81,0.14216157]
[1741318144273,7.0798,141.85,141.81,0.14216157]
[1741318144599,25.26208079,141.85,141.81,0.14216157]
[1741318145496,18.18228079,141.83,141.81,0.14216157]
[1741318146508,24.704,141.85,141.81,0.14216157]
[1741318146675,18.18228079,141.84,141.81,0.14216157]
[1741318147314,18.18228079,141.83,141.81,0.14216157]
[1741318147616,25.23328079,141.83,141.81,0.14216157]
[1741318149282,18.18228079,141.82,141.8,82.133]
[1741318149479,18.18228079,141.81,141.8,82.27516157]
[1741318149684,18.18228079,141.81,141.8,0.17516157]
[1741318149880,18.18228079,141.81,141.8,0.033]
[1741318151300,25.23388079,141.81,141.8,0.033]
[1741318157302,0.03,141.85,141.81,0.14216157]
[1741318157694,0.03,141.85,141.81,319.02216157]
[1741318158209,0.03,141.85,141.81,7.02216157]
[1741318158505,0.03,141.85,141.81,14.07346157]
[1741318159115,0.03,141.85,141.81,7.02216157]
[1741318159485,0.03,141.85,141.81,14.07376157]
[1741318159686,0.03,141.85,141.83,0.14216157]
[1741318160001,0.03,141.85,141.83,82.24216157]
[1741318160206,0.03,141.85,141.83,100.42444236]
[1741318160411,0.03,141.85,141.83,107.47474236]
[1741318160595,0.03,141.85,141.83,245.27474236]
[1741318161088,0.03,141.85,141.84,312.14216157]
[1741318162592,0.03,141.85,141.84,319.19226157]
[1741318163309,0.03,141.85,141.84,312.14216157]
[1741318163713,0.03,141.85,141.84,532.04216157]
[1741318166613,0.03,141.85,141.84,220.04216157]
[1741318167694,0.03,141.85,141.84,227.09226157]
[1741318168016,0.03,141.85,141.84,220.04216157]
[1741318169497,0.03,141.85,141.84,532.04216157]
[1741318172120,0.03,141.85,141.84,539.09226157]
[1741318173218,0.03,141.85,141.84,227.09226157]
[1741318173587,0.03,141.85,141.84,245.41670393]
[1741318173795,0.03,141.85,141.84,264.06635279]
[1741318174016,0.03,141.85,141.84,245.41670393]
[1741318174214,0.03,141.85,141.84,264.06635279]
[1741318174407,0.03,141.85,141.84,245.41670393]
[1741318176103,0.03,141.85,141.84,557.41670393]
[1741318178529,0.03,141.85,141.84,550.83312654]
[1741318181215,0.03,141.85,141.84,569.4827754]
[1741318183051,0.03,141.85,141.84,550.83312654]
[1741318184036,0.03,141.85,141.84,539.23442314]
[1741318184735,0.03,141.85,141.84,550.83312654]
[1741318185147,0.03,141.85,141.84,227.23442314]
[1741318185638,0.03,141.85,141.84,220.04216157]
[1741318186404,0.03,141.85,141.84,227.09226157]
[1741318187211,0.03,141.85,141.84,220.04216157]
[1741318188127,0.03,141.85,141.84,532.04216157]
[1741318188330,0.03,141.85,141.84,550.69096497]
[1741318188538,0.03,141.85,141.84,569.4827754]
[1741318188829,0.03,141.85,141.84,257.4827754]
[1741318191605,0.03,141.85,141.84,569.4827754]
[1741318195534,0.03,141.85,141.84,550.83312654]
[1741318195737,0.03,141.85,141.84,569.4827754]
[1741318195942,0.03,141.87,141.85,18.933972]
[1741318196153,0.03,141.92,141.87,18.79181043]
[1741318196313,0.03,141.92,141.91,11.74086497]
[1741318196509,0.03,141.92,141.91,220.04216157]
[1741318197820,0.03,141.92,141.91,82.24216157]
[1741318198132,11.6287034,141.92,141.91,82.24216157]
[1741318198924,11.6287034,141.92,141.88,6.86]
[1741318199218,11.5987034,141.91,141.89,0.14216157]
[1741318199418,18.6456034,141.91,141.89,0.14216157]
[1741318200553,11.5987034,141.9,141.88,82.1]
[1741318200755,14.7351,141.91,141.88,82.1]
[1741318201049,11.5987034,141.9,141.89,0.14216157]
[1741318201420,18.6459034,141.9,141.89,0.14216157]
[1741318201623,18.6459034,141.9,141.88,82.1]
[1741318201825,7.0472,141.9,141.87,0.14216157]
[1741318202029,18.6459034,141.9,141.86,0.14216157]
[1741318202217,11.5987034,141.91,141.86,0.28432314]
[1741318202420,0.03,141.92,141.86,30.5326754]
[1741318202746,0.03,141.92,141.88,0.14216157]
[1741318202923,18.6750034,141.92,141.88,0.14216157]
[1741318203124,18.6750034,141.92,141.9,0.14216157]
[1741318203321,7.0763,141.92,141.9,0.14216157]
[1741318203541,0.03,141.92,141.9,82.24216157]
[1741318203747,0.03,141.92,141.9,96.14926157]
[1741318204042,0.03,141.92,141.9,89.10216157]
[1741318204353,0.03,141.92,141.9,96.14926157]
[1741318204644,0.03,141.92,141.9,114.25931265]
[1741318205148,0.03,141.92,141.9,96.14926157]
[1741318206028,0.03,141.92,141.91,0.14216157]
[1741318206229,0.03,141.92,141.91,220.18432314]
[1741318206745,0.03,141.92,141.91,532.18432314]
[1741318207243,0.0001,141.92,141.91,256.94402308]
[1741318207418,0.0001,141.92,141.91,258.49432308]
[1741318207838,0.0001,141.92,141.91,265.54102308]
[1741318209341,0.0001,141.92,141.91,273.58152308]
[1741318210018,0.0001,141.92,141.91,585.58152308]
[1741318210344,0.0001,141.95,141.93,0.14216157]
[1741318210639,0.0001,141.95,141.94,56.63251106]
[1741318211844,0.0001,141.95,141.94,45.56765998]
[1741318212047,0.0001,141.95,141.94,245.40964886]
[1741318212231,0.0001,141.95,141.94,107.07005108]
[1741318212431,0.0001,141.95,141.94,88.96]
[1741318212644,18.11015108,141.95,141.94,88.96]
[1741318212860,18.11015108,141.95,141.94,82.1]
[1741318213147,18.11015108,141.95,141.91,82.1]
[1741318213359,18.11005108,141.93,141.91,82.1]
[1741318213577,18.11005108,141.94,141.92,0.14216157]
[1741318214035,7.0457,141.93,141.92,0.14216157]
[1741318214237,25.15575108,141.93,141.89,82.1]
[1741318214457,7.0457,141.93,141.87,82.1]
[1741318214660,7.0457,141.93,141.85,82.1]
[1741318214661,18.11005108,141.88,141.85,82.1]
[1741318214964,18.11005108,141.88,141.86,0.14216157]
[1741318215337,18.11005108,141.89,141.86,0.14216157]
[1741318215535,18.11005108,141.88,141.86,0.14216157]
[1741318215752,18.11005108,141.88,141.85,82.1]
[1741318215955,19.75055108,141.9,141.85,82.1]
[1741318216241,19.75055108,141.9,141.86,0.14216157]
[1741318216655,6.2447,141.92,141.86,0.14216157]
[1741318216968,18.11005108,141.91,141.86,82.24216157]
[1741318217178,18.11005108,141.91,141.86,89.10216157]
[1741318217470,18.11005108,141.91,141.86,401.10216157]
[1741318217771,18.11005108,141.9,141.86,401.10216157]
[1741318218072,25.15735108,141.9,141.86,89.10216157]
[1741318218276,18.11005108,141.89,141.86,89.10216157]
[1741318218637,18.11005108,141.89,141.86,88.96]
[1741318218839,18.11005108,141.87,141.86,82.1]
[1741318219057,18.11005108,141.87,141.86,82.24216157]
[1741318219375,18.11005108,141.87,141.86,0.14216157]
[1741318219541,18.11005108,141.87,141.82,88.96]
[1741318220243,18.11005108,141.87,141.83,0.14216157]
[1741318220443,25.15875108,141.87,141.86,0.033]
[1741318220648,29.01290545,141.87,141.86,0.033]
[1741318220939,36.06120545,141.88,141.86,0.033]
[1741318221670,29.01290545,141.87,141.86,0.033]
[1741318222468,36.06120545,141.88,141.86,0.033]
[1741318223471,29.01290545,141.87,141.86,0.033]
[1741318224344,36.06160545,141.87,141.86,0.033]
[1741318225875,36.06120545,141.88,141.86,0.033]
[1741318226042,29.01290545,141.88,141.86,0.033]
[1741318226366,29.01290545,141.89,141.86,0.033]
[1741318226541,36.06070545,141.89,141.87,0.14216157]
[1741318226969,29.01290545,141.88,141.87,0.14216157]
[1741318227174,29.01290545,141.88,141.86,312.033]
[1741318227467,29.01290545,141.87,141.86,0.033]
[1741318228041,30.61430545,141.87,141.81,82.1]
[1741318228282,29.01290545,141.82,141.8,0.033]
[1741318228575,36.06450545,141.81,141.8,0.033]
[1741318229754,36.06450545,141.81,141.76,82.1]
[1741318229953,29.01290545,141.77,141.75,0.033]
[1741318230180,29.01290545,141.76,141.75,0.033]
[1741318231071,36.06700545,141.76,141.75,0.033]
[1741318232978,71.2421109,141.76,141.75,0.033]
[1741318233182,18.64964886,141.75,141.72,0.033]
[1741318233356,29.01290545,141.73,141.65,226.793]
[1741318233563,29.01290545,141.69,141.65,82.133]
[1741318234147,29.01290545,141.69,141.66,0.14216157]
[1741318235577,7.0572,141.7,141.66,0.14216157]
[1741318235578,29.01290545,141.7,141.66,0.14216157]
[1741318235877,29.01290545,141.7,141.66,312.14216157]
[1741318236647,29.01290545,141.69,141.66,312.14216157]
[1741318237984,29.01290545,141.69,141.66,394.24216157]
[1741318238348,36.07010545,141.7,141.66,394.24216157]
[1741318238548,29.01290545,141.7,141.66,394.24216157]
[1741318239379,36.07010545,141.7,141.66,394.24216157]
[1741318239576,21.09910268,141.73,141.66,401.30116157]
[1741318239577,7.0567,141.71,141.66,401.30116157]
[1741318239879,29.01290545,141.71,141.66,401.30116157]
[1741318240175,29.01290545,141.71,141.66,394.24216157]
[1741318240354,36.06960545,141.71,141.66,394.24216157]
[1741318240553,18.17733941,141.69,141.66,394.24216157]
[1741318240873,18.17733941,141.68,141.66,312.0]
[1741318241080,18.17733941,141.69,141.67,0.14216157]
[1741318241386,18.17733941,141.71,141.67,0.14216157]
[1741318241679,25.23403941,141.71,141.67,0.14216157]
[1741318242376,25.23403941,141.71,141.66,0.14216157]
[1741318242682,18.17733941,141.7,141.66,0.14216157]
[1741318243049,18.17733941,141.69,141.66,0.14216157]
[1741318243475,18.17733941,141.68,141.66,0.14216157]
[1741318243866,18.17733941,141.69,141.66,0.14216157]
[1741318244561,25.23593941,141.67,141.66,0.14216157]
[1741318244870,25.23593941,141.67,141.65,82.133]
[1741318245172,25.23593941,141.67,141.66,0.17516157]
[1741318245484,25.23593941,141.67,141.66,312.17516157]
[1741318246388,25.23593941,141.67,141.63,0.033]
[1741318246680,25.23743941,141.64,141.63,0.033]
[1741318249774,18.17733941,141.64,141.63,0.033]
[1741318250966,18.17733941,141.65,141.63,0.033]
[1741318251472,18.17733941,141.64,141.63,0.033]
[1741318252882,7.0588,141.67,141.63,0.033]
[1741318253190,18.17733941,141.66,141.63,0.033]
[1741318253363,18.17733941,141.65,141.63,0.033]
[1741318255472,18.17733941,141.66,141.63,0.033]
[1741318255673,18.17733941,141.68,141.64,0.14216157]
[1741318255988,18.17733941,141.66,141.64,0.14216157]
[1741318256288,18.17733941,141.68,141.64,0.14216157]
[1741318256485,10.62807031,141.71,141.64,0.14216157]
[1741318256785,18.17733941,141.69,141.64,82.24216157]
[1741318257591,0.03,141.66,141.64,82.24216157]
[1741318257792,0.03,141.66,141.65,7.20176157]
[1741318258781,0.03,141.66,141.65,25.37910098]
[1741318259002,0.03,141.66,141.65,44.17091141]
[1741318259171,0.03,141.66,141.65,576.07091141]
[1741318260389,0.03,141.66,141.65,532.04216157]
[1741318260787,0.03,141.66,141.65,394.24216157]
[1741318260986,0.03,141.66,141.65,401.30176157]
[1741318261186,0.03,141.66,141.65,394.24216157]
[1741318261904,0.03,141.66,141.65,557.42126255]
[1741318262271,0.03,141.66,141.65,394.1]
[1741318262478,0.03,141.66,141.65,82.1]
[1741318262686,0.03,141.66,141.65,82.24216157]
[1741318263182,0.03,141.66,141.65,82.1]
[1741318263570,0.03,141.66,141.65,82.24216157]
[1741318263776,0.03,141.66,141.65,82.1]
[1741318263982,0.03,141.66,141.65,82.24216157]
[1741318265384,0.03,141.66,141.65,394.24216157]
[1741318265578,0.03,141.66,141.65,419.47910098]
[1741318265785,0.03,141.66,141.65,419.62126255]
[1741318265995,0.03,141.66,141.65,107.62126255]
[1741318266210,0.03,141.66,141.65,82.24216157]
[1741318266875,0.03,141.66,141.65,82.1]
[1741318267080,0.03,141.66,141.65,82.24216157]
[1741318270611,0.03,141.66,141.65,89.30176157]
[1741318270986,0.03,141.66,141.65,245.42126255]
[1741318271186,0.03,141.66,141.65,264.07091141]
[1741318272914,0.03,141.66,141.65,576.07091141]
[1741318273406,0.03,141.66,141.65,82.1]
[1741318274816,0.03,141.66,141.65,82.24216157]
[1741318275409,0.03,141.66,141.65,245.42126255]
[1741318275611,0.03,141.66,141.65,264.07091141]
[1741318276202,0.03,141.66,141.65,220.04216157]
[1741318276509,0.03,141.66,141.65,532.04216157]
[1741318277810,0.03,141.66,141.65,394.24216157]
[1741318278411,0.03,141.66,141.65,264.07091141]
[1741318278593,0.03,141.66,141.65,274.9661113]
[1741318280686,0.03,141.66,141.65,245.893572]
[1741318280891,0.03,141.66,141.65,274.9661113]
[1741318281314,0.03,141.66,141.65,586.9661113]
[1741318282003,29.0725393,141.75,141.66,18.933972]
[1741318282203,30.6706393,141.76,141.71,0.14216157]
[1741318282403,30.6706393,141.76,141.73,0.14216157]
[1741318283318,1.5981,141.76,141.73,0.14216157]
[1741318283498,0.03,141.76,141.73,89.29746157]
[1741318284416,0.03,141.76,141.75,0.14216157]
[1741318284599,0.03,141.76,141.75,82.24216157]
[1741318288995,0.03,141.76,141.75,89.29676157]
[1741318289537,0.03,141.76,141.75,82.24216157]
[1741318290920,7.0841,141.76,141.75,82.24216157]
[1741318291424,36.1566393,141.76,141.75,82.24216157]
[1741318291614,0.03,141.76,141.75,82.24216157]
[1741318292133,0.03,141.76,141.75,89.29676157]
[1741318292354,0.03,141.76,141.75,256.31146244]
[1741318292515,0.03,141.76,141.75,274.9611113]
[1741318293504,0.03,141.81,141.76,0.14216157]
[1741318293711,0.03,141.81,141.77,6.98216157]
[1741318294333,29.0725393,141.8,141.77,0.14216157]
[1741318294705,29.0725393,141.79,141.77,0.14216157]
[1741318294905,29.0725393,141.78,141.75,6.84]
[1741318295135,36.1261393,141.77,141.76,0.14216157]
[1741318295436,29.0725393,141.77,141.76,0.14216157]
[1741318295608,29.0725393,141.79,141.74,7.19686157]
[1741318295943,7.0818,141.81,141.74,256.16940087]
[1741318295944,29.0725393,141.8,141.74,256.16940087]
[1741318296145,29.1025393,141.81,141.75,47.86434973]
[1741318296354,0.03,141.81,141.76,29.21470087]
[1741318296519,0.03,141.81,141.78,0.14216157]
[1741318296812,0.03,141.81,141.78,82.24216157]
[1741318297012,0.03,141.81,141.78,89.29486157]
[1741318298962,0.03,141.81,141.78,401.29486157]
[1741318299250,0.03,141.81,141.78,394.24216157]
[1741318299833,0.03,141.81,141.78,82.24216157]
[1741318300031,29.1025393,141.81,141.78,82.24216157]
[1741318300546,18.17804926,141.81,141.78,82.24216157]
[1741318300854,18.14804926,141.8,141.78,82.24216157]
[1741318301222,18.14804926,141.79,141.78,82.1]
[1741318301731,18.14804926,141.79,141.78,82.24216157]
[1741318302930,18.14804926,141.79,141.78,0.14216157]
[1741318303135,7.0531,141.78,141.74,0.14216157]
[1741318303337,18.14804926,141.76,141.73,318.84]
[1741318303649,18.14804926,141.74,141.7,82.1]
[1741318303819,18.14804926,141.72,141.7,82.1]
[1741318304450,18.14804926,141.72,141.71,0.14216157]
[1741318304648,18.14804926,141.72,141.7,82.1]
[1741318305255,18.14804926,141.72,141.71,0.14216157]
[1741318305636,26.70464926,141.72,141.66,82.133]
[1741318305833,18.14804926,141.7,141.67,0.14216157]
[1741318306037,82.0,141.75,141.67,0.28432314]
[1741318306346,18.14804926,141.73,141.67,238.3323724]
[1741318306733,14.7614,141.76,141.67,532.18432314]
[1741318306734,18.14804926,141.72,141.67,532.18432314]
[1741318307029,18.14804926,141.73,141.67,550.3323724]
[1741318307333,18.14804926,141.74,141.69,0.28432314]
[1741318307542,18.14804926,141.75,141.69,25.2723724]
[1741318307743,18.14804926,141.75,141.69,107.3723724]
[1741318309455,18.14804926,141.75,141.71,0.14216157]
[1741318309652,0.03,141.76,141.71,82.24216157]
[1741318309957,0.03,141.76,141.73,18.29021083]
[1741318310130,0.03,141.76,141.75,312.14216157]
[1741318310927,0.03,141.76,141.75,532.18432314]
[1741318311127,0.03,141.76,141.75,220.04216157]
[1741318311946,18.17804926,141.76,141.75,82.24216157]
[1741318312338,0.03,141.76,141.75,82.24216157]
[1741318312541,0.03,141.76,141.75,89.29676157]
[1741318312737,0.03,141.76,141.75,107.5869724]
[1741318313037,0.03,141.76,141.75,89.43892314]
[1741318313444,0.03,141.76,141.75,82.24216157]
[1741318313756,0.03,141.76,141.75,89.29676157]
[1741318313960,0.03,141.76,141.75,107.5869724]
[1741318314160,0.03,141.76,141.75,557.3869724]
[1741318314637,0.03,141.76,141.75,576.03662126]
[1741318315056,0.03,141.81,141.77,0.14216157]
[1741318315253,0.03,141.81,141.79,18.4323724]
[1741318315449,0.03,141.81,141.79,6.98216157]
[1741318315662,0.03,141.81,141.79,6.84]
[1741318315663,18.17804926,141.81,141.79,6.84]
[1741318315841,18.17804926,141.81,141.8,0.14216157]
[1741318316039,0.03,141.81,141.8,0.14216157]
[1741318316359,18.17804926,141.81,141.8,0.14216157]
[1741318318862,0.03,141.81,141.8,0.14216157]
[1741318319059,0.03,141.81,141.8,89.29426157]
[1741318319261,0.03,141.81,141.8,82.24216157]
[1741318320365,0.03,141.81,141.8,264.03412126]
[1741318321853,0.03,141.91,141.84,7.19226157]
[1741318322162,0.03,141.91,141.86,18.29021083]
[1741318322386,18.14804926,141.89,141.86,220.04216157]
[1741318322570,18.14804926,141.87,141.86,0.14216157]
[1741318323546,18.14804926,141.87,141.83,82.1]
[1741318323864,18.14804926,141.84,141.81,82.1]
[1741318324065,18.14804926,141.83,141.81,0.14216157]
[1741318324571,18.14804926,141.83,141.8,0.14216157]
[1741318324762,7.0498,141.85,141.8,0.14216157]
[1741318324763,18.14804926,141.85,141.8,82.24216157]
[1741318325375,18.14804926,141.84,141.8,82.24216157]
[1741318325563,1.6147,141.87,141.81,0.14216157]
[1741318325870,18.14804926,141.87,141.82,0.14216157]
[1741318326069,18.14804926,141.89,141.84,0.14216157]
[1741318326279,18.14804926,141.9,141.86,0.14216157]
[1741318326579,18.14804926,141.89,141.86,0.14216157]
[1741318327575,25.19544926,141.9,141.86,0.14216157]
[1741318328063,18.14804926,141.89,141.86,0.14216157]
[1741318328263,18.14804926,141.88,141.86,0.14216157]
[1741318328466,7.0474,141.9,141.86,0.14216157]
[1741318328467,18.14804926,141.87,141.86,0.14216157]
[1741318328660,18.14804926,141.88,141.86,0.14216157]
[1741318328977,7.0474,141.9,141.86,312.14216157]
[1741318328978,18.14804926,141.89,141.86,312.14216157]
[1741318329167,8.633,141.91,141.86,394.24216157]
[1741318329371,0.03,141.91,141.88,0.14216157]
[1741318329561,0.03,141.91,141.88,238.19021083]
[1741318329761,25.22474926,141.91,141.88,220.04216157]
[1741318329964,18.14804926,141.9,141.88,82.24216157]
[1741318330277,18.14804926,141.89,141.88,82.24216157]
[1741318330472,18.14804926,141.9,141.88,82.24216157]
[1741318330688,25.22474926,141.91,141.88,82.24216157]
[1741318330980,18.14804926,141.9,141.88,82.24216157]
[1741318331206,18.14804926,141.89,141.88,82.24216157]
[1741318331494,18.14804926,141.89,141.85,226.72]
[1741318331784,18.14804926,141.89,141.82,88.92]
[1741318331785,18.14804926,141.86,141.82,88.92]
[1741318331972,18.14804926,141.85,141.83,0.14216157]
[1741318332164,18.14804926,141.85,141.82,88.92]
[1741318332371,18.14804926,141.84,141.82,82.1]
[1741318332570,18.14804926,141.84,141.78,25.20104926]
[1741318332571,18.14804926,141.83,141.8,6.82]
[1741318332879,18.14804926,141.81,141.78,82.1]
[1741318333075,18.14804926,141.79,141.76,394.64]
[1741318333277,18.14804926,141.78,141.76,82.1]
[1741318333664,18.14804926,141.77,141.72,82.1]
[1741318333869,18.14804926,141.76,141.74,0.14216157]
[1741318334484,18.14804926,141.75,141.73,82.1]
[1741318334687,29.06207414,141.74,141.73,82.1]
[1741318334985,29.06207414,141.74,141.72,0.28432314]
[1741318335184,6.454,141.83,141.74,18.933972]
[1741318335384,29.06207414,141.82,141.76,29.34639728]
[1741318335590,29.06207414,141.83,141.78,0.14216157]
[1741318335775,29.06207414,141.82,141.78,82.24216157]
[1741318336684,29.06207414,141.83,141.78,82.24216157]
[1741318337067,29.06207414,141.85,141.78,111.30423571]
[1741318337266,29.06207414,141.85,141.8,0.14216157]
[1741318337465,6.1681,141.87,141.81,6.82]
[1741318337791,29.06207414,141.86,141.82,0.14216157]
[1741318338084,29.06207414,141.87,141.82,0.14216157]
[1741318338292,29.06207414,141.86,141.82,0.14216157]
[1741318338872,29.06207414,141.88,141.82,249.24639728]
[1741318339076,29.06207414,141.89,141.84,0.28432314]
[1741318339401,29.06207414,141.9,141.86,0.14216157]
[1741318339597,29.06207414,141.9,141.87,6.82]
[1741318339771,29.06207414,141.89,141.87,6.82]
[1741318340594,29.06207414,141.88,141.87,6.82]
[1741318340797,29.06207414,141.88,141.86,82.1]
[1741318340981,29.06207414,141.87,141.86,82.1]
[1741318341166,29.06207414,141.87,141.85,0.14216157]
[1741318341370,29.06207414,141.87,141.83,6.82]
[1741318341371,29.06207414,141.88,141.84,0.14216157]
[1741318341998,29.06207414,141.87,141.84,0.14216157]
[1741318342593,29.06207414,141.87,141.84,312.14216157]
[1741318342895,29.06207414,141.88,141.84,312.14216157]
[1741318343083,29.06207414,141.89,141.84,319.19226157]
[1741318343592,29.06207414,141.89,141.84,312.14216157]
[1741318343797,29.06207414,141.88,141.84,312.14216157]
[1741318344602,29.06207414,141.89,141.84,312.14216157]
[1741318344914,29.06207414,141.89,141.84,394.24216157]
[1741318345071,29.09207414,141.91,141.85,29.20423571]
[1741318345276,29.09207414,141.91,141.9,0.14216157]
[1741318345277,0.03,141.91,141.9,0.14216157]
[1741318345472,0.03,141.91,141.9,256.06639728]
[1741318345671,0.03,141.91,141.9,274.71604614]
[1741318347488,0.0001,141.95,141.92,0.14216157]
[1741318347679,0.0001,141.95,141.94,47.85388457]
[1741318348178,0.0001,141.95,141.94,359.85388457]
[1741318348999,0.0001,141.95,141.94,359.99604614]
[1741318349198,0.0001,141.95,141.94,579.89604614]
[1741318349405,0.0001,141.95,141.94,586.94124614]
[1741318350280,0.03,142.0,141.95,18.933972]
[1741318350485,0.03,142.0,141.99,29.34639728]
[1741318350787,0.03,142.0,141.99,249.24639728]
[1741318351003,0.03,142.0,141.99,249.10423571]
[1741318351203,0.03,142.0,141.99,220.04216157]
[1741318352108,0.03,142.0,141.99,249.10423571]
[1741318352707,0.03,142.0,141.99,220.04216157]
[1741318353688,0.03,142.0,141.99,532.04216157]
[1741318354007,0.03,142.0,141.99,394.24216157]
[1741318354502,0.03,142.0,141.99,82.24216157]
[1741318355207,29.09207414,142.0,141.99,82.24216157]
[1741318355408,0.03,142.0,141.99,82.24216157]
[1741318355609,29.09207414,142.0,141.99,82.1]
[1741318355811,36.13427414,142.0,141.99,82.1]
[1741318356009,36.13427414,142.0,141.99,82.24216157]
[1741318357712,53.73987414,142.0,141.97,6.82]
[1741318358015,29.06207414,141.99,141.98,0.14216157]
[1741318358715,29.06207414,141.99,141.95,312.0]
[1741318358891,29.06207414,141.97,141.94,82.1]
[1741318359090,7.0442,141.96,141.95,0.14216157]
[1741318359291,36.10627414,141.96,141.95,0.14216157]
[1741318359501,7.0442,141.96,141.95,0.14216157]
[1741318359702,7.0442,141.96,141.94,82.1]
[1741318360018,7.0442,141.96,141.95,0.14216157]
[1741318360429,7.0442,141.96,141.92,82.1]
[1741318360430,53.71677414,141.96,141.92,82.1]
[1741318360591,29.06207414,141.94,141.92,82.1]
[1741318360914,24.6547,141.96,141.92,82.1]
[1741318360915,29.06207414,141.93,141.92,82.1]
[1741318361094,29.06207414,141.93,141.87,219.9]
[1741318361293,29.06207414,141.9,141.87,88.9]
[1741318361713,29.06207414,141.9,141.85,82.1]
[1741318361891,29.06207414,141.86,141.81,249.893]
[1741318362094,29.06207414,141.86,141.82,0.14216157]
[1741318362290,29.06207414,141.84,141.81,249.893]
[1741318362596,29.06207414,141.83,141.81,249.893]
[1741318362797,29.06207414,141.83,141.82,0.14216157]
[1741318362999,29.06207414,141.84,141.82,0.14216157]
[1741318363199,29.06207414,141.84,141.81,82.133]
[1741318363200,36.11237414,141.84,141.81,82.133]
[1741318363398,29.06207414,141.84,141.82,0.14216157]
[1741318363598,36.11237414,141.84,141.82,0.14216157]
[1741318364006,29.06207414,141.83,141.81,82.133]
[1741318364310,29.06207414,141.82,141.81,82.27516157]
[1741318364614,29.06207414,141.82,141.81,82.133]
[1741318364821,29.06207414,141.82,141.81,82.27516157]
[1741318365522,36.11317414,141.82,141.81,82.27516157]
[1741318366212,36.11317414,141.82,141.81,0.033]
[1741318367219,65.17524828,141.82,141.81,0.033]
[1741318367921,36.11317414,141.82,141.81,0.033]
[1741318369220,54.762823,141.82,141.81,0.033]
[1741318369525,83.82489714,141.82,141.81,0.033]
[1741318369717,54.762823,141.82,141.81,0.033]
[1741318371025,36.11317414,141.82,141.81,0.033]
[1741318371904,83.82489714,141.82,141.81,0.033]
[1741318372105,54.762823,141.82,141.81,0.033]
[1741318372935,83.82489714,141.82,141.81,0.033]
[1741318373222,36.11317414,141.82,141.81,0.033]
[1741318377722,29.06207414,141.82,141.81,0.033]
[1741318380734,36.11317414,141.82,141.81,0.033]
[1741318381836,36.11317414,141.82,141.75,82.1]
[1741318381837,18.79181043,141.81,141.75,82.1]
[1741318382022,29.06207414,141.76,141.72,95.2714]
[1741318382219,29.06207414,141.77,141.73,0.14216157]
[1741318382518,29.06207414,141.78,141.73,0.14216157]
[1741318382717,29.06207414,141.76,141.72,82.1]
[1741318383022,29.06207414,141.76,141.71,167.94]
[1741318383023,29.06207414,141.74,141.71,0.14216157]
[1741318383220,29.06207414,141.73,141.7,82.1]
[1741318383535,29.06207414,141.73,141.71,0.14216157]